fUSD/lending_fUSD_20260129
["ID","MTS","AMOUNT","RATE_DAILY","PERIOD"]
[403905974,1769654962416,-445.68,0.00015346,2]
[403905975,1769654962439,-500.0,0.00015365,2]
[403905976,1769654962459,-445.68,0.00015393,2]
[403905977,1769654962479,-445.68,0.00015441,2]
[403905978,1769654962498,-445.68,0.00015489,2]
[403905979,1769654962518,-445.68,0.00015537,2]
[403905980,1769654962537,-445.68,0.00015584,2]
[403905981,1769654962560,-445.68,0.00015632,2]
[403905982,1769654962580,-445.68,0.0001568,2]
[403905983,1769654962602,-445.68,0.00015728,2]
[403905984,1769654962620,-161.38883438,0.00015733,2]
[403905985,1769654962859,-151.0,0.0001582,2]
[403905986,1769654962884,-15604.3792045,0.00015823,2]
[403905987,1769654971089,-6337.83983,0.00015823,2]
[403905995,1769655031614,-497.17741184,0.00015733,2]
[403905996,1769655031624,-199.00426783,0.00015822,2]
[403905997,1769655031634,-296.37517483,0.00015822,2]
[403905998,1769655031678,-236.52434908,0.00015822,2]
[403905999,1769655031687,-295.36140058,0.00015822,2]
[403906000,1769655031697,-444.6682933,0.00015822,2]
[403906001,1769655031710,-500.0,0.00015822,2]
[403906002,1769655031720,-500.0,0.00015822,2]
[403906003,1769655031730,-500.0,0.00015822,2]
[403906004,1769655031740,-440.45926472,0.00015822,2]
[403906005,1769655031750,-181.9702914,0.00015822,2]
[403906006,1769655031760,-24837.35934386,0.00015823,2]
[403906007,1769655031773,-18518.60422838,0.00015823,2]
[403906008,1769655031784,-25390.12213884,0.00015823,2]
[403906009,1769655031804,-18782.14093704,0.00015823,2]
[403906010,1769655031815,-112909.69309855,0.00015823,2]
[403906011,1769655031827,-2286.90336051,0.00015823,2]
[403906012,1769655031863,-572.0678,0.00015823,2]
[403906013,1769655031885,-700.38365401,0.00015823,2]
[403906019,1769655037703,-3379.8,0.00015823,2]
[403906021,1769655037776,-83266.44060545,0.00015823,2]
[403906022,1769655037787,-1398.0097788,0.00015823,2]
[403906023,1769655037799,-4247.40629673,0.00015823,2]
[403906024,1769655037811,-11263.07692612,0.00015823,2]
[403906025,1769655037822,-7901.58188002,0.00015823,2]
[403906026,1769655037842,-1462604.19091719,0.00015823,2]
[403906027,1769655037852,-150.0,0.00015833,2]
[403906028,1769655037861,-151.0,0.00015855,2]
[403906029,1769655037871,-151.0,0.00015856,2]
[403906030,1769655037880,-151.0,0.00015879,2]
[403906031,1769655037889,-151.0,0.00015888,2]
[403906032,1769655037899,-1000.0,0.00015918,2]
[403906033,1769655037909,-300.0,0.00015922,2]
[403906034,1769655037919,-4451.16319967,0.00015923,2]
[403906035,1769655037929,-3505.69934984,0.00015923,2]
[403906036,1769655037939,-3958.3225,0.00015923,2]
[403906037,1769655037948,-1000.0,0.00015923,2]
[403906038,1769655037958,-2060.837,0.00015923,2]
[403906039,1769655037967,-10992.60827739,0.00015942,2]
[403906040,1769655037980,-10618.33563444,0.00015942,2]
[403906041,1769655037990,-157.14535773,0.00015948,2]
[403906042,1769655038000,-150.0,0.00015948,2]
[403906043,1769655038011,-150.0,0.00015948,2]
[403906044,1769655038022,-153.23607155,0.00015948,2]
[403906045,1769655038032,-152.171088,0.00015948,2]
[403906046,1769655038042,-150.0,0.00016003,2]
[403906047,1769655038052,-150.0,0.00016003,2]
[403906048,1769655038063,-151.0,0.00016013,2]
[403906049,1769655038072,-151.0,0.00016013,2]
[403906050,1769655038082,-151.0,0.00016013,2]
[403906051,1769655038092,-160.98149759,0.00016013,2]
[403906052,1769655038101,-5901.61,0.0001602,2]
[403906053,1769655038111,-999.99,0.0001602,2]
[403906054,1769655038121,-9999.99,0.0001602,2]
[403906055,1769655038131,-1622.94760757,0.00016022,5]
[403906056,1769655038141,-542.73706381,0.00016022,2]
[403906057,1769655038150,-508.58811219,0.00016022,2]
[403906058,1769655038160,-505.41394898,0.00016022,2]
[403906059,1769655038170,-519.42611305,0.00016022,2]
[403906060,1769655038179,-15384.32,0.00016022,2]
[403906061,1769655038189,-150.99,0.00016022,2]
[403906062,1769655038199,-9460.44,0.00016022,2]
[403906063,1769655038209,-500.0,0.00016022,2]
[403906064,1769655038220,-500.0,0.00016022,2]
[403906065,1769655038230,-313.33608434,0.00016022,2]
[403906066,1769655038239,-519.17968235,0.00016022,2]
[403906067,1769655038249,-500.0,0.00016022,2]
[403906068,1769655038260,-500.0,0.00016022,2]
[403906069,1769655038270,-608.30930383,0.00016022,2]
[403906070,1769655038280,-502.76524497,0.00016022,2]
[403906071,1769655038289,-509.53416261,0.00016022,2]
[403906072,1769655038299,-500.0,0.00016022,2]
[403906073,1769655038308,-500.0,0.00016022,2]
[403906074,1769655038318,-500.0,0.00016022,2]
[403906075,1769655038327,-500.0,0.00016022,2]
[403906076,1769655038338,-270.05459214,0.00016022,2]
[403906077,1769655038347,-575.71960107,0.00016022,2]
[403906078,1769655038359,-500.0,0.00016022,2]
[403906079,1769655038370,-206.05029368,0.00016022,2]
[403906080,1769655038383,-742.26,0.00016022,2]
[403906082,1769655038394,-500.0,0.00016022,2]
[403906084,1769655038403,-500.0,0.00016022,2]
[403906085,1769655038415,-500.0,0.00016022,2]
[403906087,1769655038426,-500.0,0.00016022,2]
[403906089,1769655038437,-500.0,0.00016022,2]
[403906091,1769655038448,-173.98615421,0.00016023,2]
[403906093,1769655038459,-150.0,0.00016023,2]
[403906095,1769655038470,-150.0,0.00016023,2]
[403906097,1769655038481,-609.03,0.00016042,2]
[403906099,1769655038491,-208.53165881,0.00016058,2]
[403906101,1769655038502,-150.0,0.00016058,2]
[403906103,1769655038512,-150.0,0.00016112,2]
[403906105,1769655038520,-10992.60827735,0.0001616,2]
[403906107,1769655038530,-10618.3356344,0.0001616,2]
[403906109,1769655038541,-150.0,0.00016167,2]
[403906111,1769655038551,-250.0,0.00016222,2]
[403906113,1769655038561,-500.0,0.00016222,2]
[403906115,1769655038573,-500.0,0.00016222,2]
[403906117,1769655038584,-500.0,0.00016222,2]
[403906119,1769655038594,-505.81433049,0.00016222,2]
[403906121,1769655038607,-500.0,0.00016222,2]
[403906123,1769655038619,-517.05613918,0.00016222,2]
[403906126,1769655038631,-500.0,0.00016222,2]
[403906128,1769655038642,-500.0,0.00016222,3]
[403906130,1769655038652,-500.0,0.00016222,4]
[403906132,1769655038663,-500.0,0.00016222,5]
[403906134,1769655038675,-500.0,0.00016222,2]
[403906136,1769655038686,-500.0,0.00016222,2]
[403906138,1769655038698,-292.95421392,0.00016222,2]
[403906140,1769655038708,-509.50804323,0.00016222,2]
[403906142,1769655038719,-500.0,0.00016222,2]
[403906144,1769655038730,-500.0,0.00016222,2]
[403906146,1769655038740,-500.0,0.00016222,2]
[403906148,1769655038750,-500.0,0.00016222,2]
[403906150,1769655038761,-517.21244677,0.00016229,2]
[403906152,1769655038774,-742.26,0.00016296,2]
[403906154,1769655038785,-500.0,0.00016373,2]
[403906156,1769655038795,-501.21549454,0.00016373,2]
[403906158,1769655038805,-500.0,0.00016373,2]
[403906160,1769655038815,-500.0,0.00016373,2]
[403906162,1769655038827,-500.0,0.00016373,2]
[403906164,1769655038837,-500.0,0.00016373,2]
[403906165,1769655038850,-500.0,0.00016373,2]
[403906167,1769655038865,-500.0,0.00016373,2]
[403906170,1769655038876,-500.0,0.00016373,2]
[403906172,1769655038886,-500.0,0.00016373,2]
[403906173,1769655038898,-500.0,0.00016373,2]
[403906175,1769655038909,-500.0,0.00016373,2]
[403906177,1769655038920,-10992.60827735,0.00016377,2]
[403906179,1769655038930,-10618.3356344,0.00016377,2]
[403906181,1769655038941,-181.16626951,0.00016438,2]
[403906183,1769655038954,-500.0,0.00016438,2]
[403906185,1769655038967,-500.0,0.00016438,2]
[403906187,1769655038982,-500.0,0.00016438,2]
[403906189,1769655038998,-500.0,0.00016438,2]
[403906191,1769655039012,-500.0,0.00016438,2]
[403906193,1769655039026,-500.0,0.00016438,2]
[403906195,1769655039037,-500.0,0.00016438,2]
[403906197,1769655039047,-500.0,0.00016438,2]
[403906198,1769655039059,-500.0,0.00016438,2]
[403906200,1769655039071,-500.0,0.00016438,2]
[403906202,1769655039083,-543.06201562,0.00016438,2]
[403906204,1769655039095,-500.0,0.00016438,2]
[403906207,1769655039108,-500.0,0.00016438,2]
[403906208,1769655039118,-500.0,0.00016438,2]
[403906210,1769655039129,-500.0,0.00016438,2]
[403906212,1769655039140,-500.0,0.00016438,2]
[403906214,1769655039151,-500.0,0.00016438,2]
[403906216,1769655039162,-500.0,0.00016438,2]
[403906218,1769655039173,-500.0,0.00016438,2]
[403906220,1769655039183,-500.0,0.00016438,2]
[403906222,1769655039193,-500.0,0.00016438,2]
[403906224,1769655039202,-500.0,0.00016438,2]
[403906226,1769655039213,-500.0,0.00016438,2]
[403906228,1769655039224,-500.0,0.00016438,2]
[403906230,1769655039235,-51940.02,0.00016485,2]
[403906232,1769655039246,-227.11,0.00016492,2]
[403906234,1769655039256,-16557.51,0.00016507,2]
[403906236,1769655039266,-1000.0,0.00016515,2]
[403906238,1769655039276,-742.26,0.0001657,2]
[403906240,1769655039290,-10992.60827735,0.00016595,2]
[403906242,1769655039301,-10618.3356344,0.00016595,2]
[403906244,1769655039313,-609.65692729,0.0001679,2]
[403906246,1769655039324,-250.0,0.0001679,2]
[403906249,1769655039336,-600.0,0.0001679,2]
[403906251,1769655039347,-250.0,0.0001679,2]
[403906253,1769655039360,-195.0,0.0001679,2]
[403906255,1769655039370,-609.03,0.00016806,2]
[403906257,1769655039382,-10992.60827735,0.00016812,2]
[403906259,1769655039393,-10618.3356344,0.00016812,2]
[403906261,1769655039403,-742.26,0.00016844,2]
[403906263,1769655039413,-1000.0,0.00016921,2]
[403906265,1769655039425,-500.37082769,0.00016921,2]
[403906267,1769655039436,-501.47284446,0.00016921,2]
[403906269,1769655039447,-1004.96930507,0.00016921,2]
[403906271,1769655039459,-1000.0,0.00016921,2]
[403906273,1769655039470,-1000.0,0.00016921,2]
[403906275,1769655039480,-1006.06036002,0.00016921,2]
[403906277,1769655039491,-1000.0,0.00016921,2]
[403906279,1769655039502,-619.69171476,0.00016921,2]
[403906281,1769655039512,-1233.5767926,0.00016984,2]
[403906283,1769655039523,-500.0,0.00016986,2]
[403906285,1769655039534,-1000.0,0.00016997,2]
[403906287,1769655039548,-250.0,0.00017,2]
[403906289,1769655039559,-209.40437684,0.00017029,2]
[403906291,1769655039571,-10992.60827735,0.0001703,2]
[403906293,1769655039581,-10618.3356344,0.0001703,2]
[403906295,1769655039591,-217.15233878,0.00017084,2]
[403906297,1769655039602,-1000.0,0.00017112,2]
[403906299,1769655039616,-742.26,0.00017118,2]
[403906301,1769655039626,-225.18697532,0.00017139,2]
[403906303,1769655039637,-217.02628545,0.00017144,2]
[403906305,1769655039647,-572.73580099,0.00017144,2]
[403906307,1769655039657,-1233.57679257,0.00017167,2]
[403906309,1769655039668,-233.51889341,0.00017194,2]
[403906311,1769655039679,-10992.60827735,0.00017247,2]
[403906313,1769655039691,-10618.3356344,0.00017247,2]
[403906315,1769655039702,-242.15909246,0.00017249,2]
[403906317,1769655039712,-251.11897888,0.00017304,2]
[403906319,1769655039722,-600.0,0.00017306,2]
[403906321,1769655039732,-1233.57679257,0.0001735,2]
[403906323,1769655039742,-260.4103811,0.00017359,2]
[403906325,1769655039752,-742.27381915,0.00017392,2]
[403906327,1769655039761,-270.0455652,0.00017414,2]
[403906329,1769655039772,-10992.60827735,0.00017465,2]
[403906331,1769655039782,-10618.3356344,0.00017465,2]
[403906333,1769655039792,-1500.0,0.00017468,2]
[403906335,1769655039801,-1500.0,0.00017468,2]
[403906337,1769655039811,-1500.0,0.00017468,2]
[403906339,1769655039821,-984.2666436,0.00017468,2]
[403906341,1769655039831,-280.03725112,0.00017469,2]
[403906343,1769655039842,-290.39862941,0.00017524,2]
[403906346,1769655039853,-1233.57679257,0.00017534,2]
[403906348,1769655039866,-609.03,0.0001757,2]
[403906350,1769655039878,-301.1433787,0.00017579,2]
[403906352,1769655039889,-1016.31098143,0.0001764,2]
[403906354,1769655039901,-1010.37384149,0.00017644,2]
[403906356,1769655039911,-1511.45884038,0.00017644,2]
[403906358,1769655039922,-2045.0529,0.00017644,2]
[403906360,1769655039932,-10992.60827735,0.00017682,2]
[403906362,1769655039942,-10618.3356344,0.00017682,2]
[403906364,1769655039953,-1616.77,0.00017699,2]
[403906366,1769655039963,-1000.0,0.00017709,2]
[403906368,1769655039976,-1233.57679257,0.00017717,2]
[403906370,1769655039986,-169.49,0.00017718,2]
[403906372,1769655039996,-421.0,0.00017791,2]
[403906374,1769655040006,-500.0,0.00017808,2]
[403906375,1769655040018,-231.68363061,0.0001782,2]
[403906377,1769655040029,-1565.92901,0.0001782,2]
[403906378,1769655040039,-1565.92902,0.0001782,2]
[403906379,1769655040051,-540.0,0.00017833,2]
[403906380,1769655040062,-540.0,0.00017843,2]
[403906381,1769655040072,-500.0,0.00017863,2]
[403906382,1769655040082,-180.17786517,0.000179,3]
[403906383,1769655040093,-10992.60827735,0.000179,2]
[403906384,1769655040104,-10618.3356344,0.000179,2]
[403906385,1769655040116,-236.78161332,0.000179,2]
[403906386,1769655040126,-1233.57679257,0.000179,2]
[403906387,1769655040136,-257.38124903,0.000179,2]
[403906388,1769655040147,-26474.06695933,0.000179,2]
[403906389,1769655040157,-4689.0,0.000179,2]
[403906390,1769655040168,-500.0,0.00017918,2]
[403906391,1769655040179,-540.0,0.00017953,2]
[403906392,1769655040190,-500.0,0.00017972,2]
[403906393,1769655040203,-934.81727623,0.00017982,2]
[403906394,1769655040214,-14716.4810111,0.00017989,2]
[403906395,1769655040226,-151.0,0.00017996,2]
[403906396,1769655040237,-151.0,0.00017997,2]
[403906397,1769655040249,-5093.9269305,0.00017999,2]
[403906398,1769655040261,-126999.2406898,0.00017999,2]
[403906399,1769655040272,-500.0,0.00017999,6]
[403906400,1769655040284,-500.0,0.00017999,7]
[403906401,1769655040296,-500.0,0.00017999,8]
[403906402,1769655040308,-500.0,0.00017999,9]
[403906403,1769655040319,-300.0,0.00017999,2]
[403906404,1769655040330,-155.268,0.00017999,2]
[403906405,1769655040341,-4757937.6291789,0.00018,2]
[403906406,1769655040355,-104656.75322043,0.00018,2]
[403906408,1769655041018,-140408.45886317,0.00018,2]
[403906409,1769655041046,-594.60163973,0.00018,2]
[403906410,1769655041061,-19966.426578,0.00018,2]
[403906411,1769655041085,-6075.94110169,0.00018,2]
[403906412,1769655041180,-492.088,0.00017718,2]
[403906413,1769655041192,-143097.48497807,0.00018,2]
[403906414,1769655041826,-264.546,0.00018,2]
[403906415,1769655041842,-657.99369636,0.00018,2]
[403906425,1769655044624,-39849.43456547,0.00018,2]
[403906428,1769655044635,-10471.7903211,0.00018,2]
[403906433,1769655044746,-552.87211376,0.00018,2]
[403906435,1769655044801,-3083.53523726,0.00018,2]
[403906436,1769655044812,-118479.70784586,0.00018,2]
[403906437,1769655044958,-17515.57169974,0.00018,2]
[403906492,1769655045764,-3226.57184859,0.00018,2]
[403906494,1769655045775,-13139.11305013,0.00018,2]
[403906509,1769655045908,-1782.87748456,0.00018,2]
[403906518,1769655045979,-6400.0023561,0.00018,2]
[403906530,1769655046091,-525.13315237,0.00018,2]
[403906533,1769655046102,-518.43882721,0.00018,2]
[403906535,1769655046115,-3761.39989,0.00018,2]
[403906537,1769655046125,-3981.039,0.00018,2]
[403907159,1769655213389,10000.01,0.00012,2]
[403907160,1769655213412,10000.01,0.00012,2]
[403907161,1769655213433,10000.01,0.00012,2]
[403907162,1769655213454,10000.01,0.00012,2]
[403907163,1769655213474,10000.01,0.00012,2]
[403907164,1769655213495,10000.01,0.00012,2]
[403907165,1769655213516,9999.94,0.00012,2]
[403907166,1769655700532,8524.0,0.00021,30]
[403907167,1769655919330,160.0,0.00020349,120]
[403907168,1769656011262,153.13,0.000155,2]
[403907169,1769656147087,-336.5115468,0.00015713,2]
[403907170,1769656165105,-863.4884532,0.00015713,2]
[403907171,1769656165125,-214.3,0.00015714,2]
[403907172,1769656165145,-1000.0,0.00015723,2]
[403907173,1769656165164,-3113.4008,0.00015723,2]
[403907174,1769656165184,-677.5345,0.00015723,2]
[403907175,1769656165204,-214.3,0.00015988,2]
[403907176,1769656165226,-15000.0,0.00016,2]
[403907177,1769656165246,-500.0,0.00016022,2]
[403907178,1769656165265,-500.0,0.00016022,2]
[403907179,1769656165288,-500.0,0.00016022,2]
[403907180,1769656165310,-500.0,0.00016022,3]
[403907181,1769656165331,-500.0,0.00016022,4]
[403907182,1769656165352,-500.0,0.00016022,5]
[403907183,1769656165372,-499.99,0.00016022,2]
[403907184,1769656165393,-166.66,0.0001608,2]
[403907185,1769656165412,-413.75,0.0001608,2]
[403907186,1769656165434,-2978.18,0.0001608,2]
[403907187,1769656165454,-310.67,0.00016132,2]
[403907188,1769656172734,3046.0,0.00013881,2]
[403907189,1769656206562,162.0,0.00020337,120]
[403907200,1769656231829,-214.3,0.00016262,2]
[403907202,1769656231838,-1200.0,0.00016372,2]
[403907204,1769656231847,-609.65692729,0.00016372,2]
[403907205,1769656231856,-250.0,0.00016372,2]
[403907207,1769656231865,-501.25515069,0.00016373,2]
[403907209,1769656231874,-461.89505,0.00016373,2]
[403907210,1769656231883,-500.0,0.00016373,2]
[403907211,1769656231892,-502.1700093,0.00016373,2]
[403907212,1769656231900,-500.0,0.00016373,2]
[403907213,1769656231909,-500.0,0.00016373,2]
[403907214,1769656231918,-500.0,0.00016373,2]
[403907215,1769656231927,-500.0,0.00016373,2]
[403907216,1769656231936,-166.66,0.00016419,2]
[403907217,1769656231945,-151.0,0.00016435,2]
[403907218,1769656231954,-619.69171476,0.00016438,2]
[403907219,1769656231963,-151.0,0.00016446,2]
[403907220,1769656231972,-151.0,0.00016447,2]
[403907221,1769656231981,-214.3,0.00016536,2]
[403907222,1769656231990,-200.0,0.00016545,2]
[403907223,1769656232000,-166.66,0.00016758,2]
[403907224,1769656232009,-163.0,0.0001676,2]
[403907225,1769656232018,-163.0,0.0001676,2]
[403907226,1769656232027,-163.0,0.0001676,2]
[403907227,1769656232036,-214.31381915,0.0001681,2]
[403907228,1769656232046,-891.91583195,0.00016921,2]
[403907229,1769656232055,-1000.0,0.00016921,2]
[403907230,1769656232063,-1000.0,0.00016921,2]
[403907231,1769656232072,-1000.0,0.00016921,2]
[403907232,1769656232081,-1000.0,0.00016921,2]
[403907233,1769656232090,-500.0,0.0001695,2]
[403907234,1769656232099,-500.0,0.0001695,2]
[403907235,1769656232108,-202.4324599,0.0001698,2]
[403907236,1769656232117,-151.0,0.0001698,2]
[403907237,1769656232126,-151.0,0.0001698,2]
[403907238,1769656232135,-151.0,0.0001698,2]
[403907239,1769656232144,-151.0,0.0001698,2]
[403907240,1769656232153,-151.0,0.0001698,2]
[403907241,1769656232162,-151.0,0.0001698,2]
[403907242,1769656232171,-151.0,0.0001698,2]
[403907243,1769656232180,-151.0,0.0001698,2]
[403907244,1769656232189,-151.0,0.0001698,2]
[403907245,1769656232198,-286.67782355,0.0001698,2]
[403907246,1769656232207,-16608.0,0.0001699,2]
[403907247,1769656232216,-503.00386347,0.00017,5]
[403907248,1769656232225,-250.0,0.00017,2]
[403907249,1769656232234,-500.0,0.00017005,2]
[403907250,1769656232243,-500.0,0.00017005,2]
[403907251,1769656232251,-500.0,0.0001706,2]
[403907253,1769656232260,-500.0,0.0001706,2]
[403907254,1769656232269,-166.66,0.00017096,2]
[403907256,1769656232278,-209.40437684,0.00017099,2]
[403907257,1769656232287,-500.0,0.00017114,2]
[403907258,1769656232296,-500.0,0.00017114,2]
[403907259,1769656232311,-217.15233878,0.00017154,2]
[403907261,1769656232320,-500.0,0.00017169,2]
[403907263,1769656232328,-500.0,0.00017169,2]
[403907265,1769656232336,-225.18697532,0.00017209,2]
[403907267,1769656232346,-152.0,0.00017223,2]
[403907269,1769656232355,-152.0,0.00017223,2]
[403907271,1769656232363,-152.0,0.00017223,2]
[403907273,1769656232372,-151.0,0.00017223,2]
[403907276,1769656232382,-152.0,0.00017223,2]
[403907278,1769656232391,-151.0,0.00017223,2]
[403907280,1769656232400,-158.0,0.00017223,2]
[403907282,1769656232409,-152.0,0.00017223,2]
[403907284,1769656232418,-151.0,0.00017223,2]
[403907286,1769656232427,-152.0,0.00017223,2]
[403907288,1769656232435,-151.0,0.00017223,2]
[403907290,1769656232444,-152.0,0.00017223,2]
[403907292,1769656232453,-151.0,0.00017223,2]
[403907294,1769656232462,-152.0,0.00017223,2]
[403907296,1769656232471,-152.0,0.00017223,2]
[403907298,1769656232480,-151.0,0.00017223,2]
[403907299,1769656232488,-151.0,0.00017223,2]
[403907300,1769656232497,-152.0,0.00017223,2]
[403907301,1769656232507,-151.0,0.00017223,2]
[403907302,1769656232517,-151.0,0.00017223,2]
[403907303,1769656232525,-152.0,0.00017223,2]
[403907304,1769656232534,-151.0,0.00017223,2]
[403907305,1769656232544,-152.0,0.00017223,2]
[403907306,1769656232553,-151.0,0.00017223,2]
[403907307,1769656232562,-151.0,0.00017223,2]
[403907308,1769656232571,-152.0,0.00017223,2]
[403907309,1769656232580,-151.0,0.00017223,2]
[403907310,1769656232589,-151.0,0.00017223,2]
[403907311,1769656232599,-152.0,0.00017223,2]
[403907312,1769656232608,-151.0,0.00017223,2]
[403907313,1769656232616,-151.0,0.00017223,2]
[403907314,1769656232625,-152.0,0.00017223,2]
[403907315,1769656232634,-151.0,0.00017223,2]
[403907316,1769656232643,-151.0,0.00017223,2]
[403907317,1769656232652,-152.0,0.00017223,2]
[403907318,1769656232661,-151.0,0.00017223,2]
[403907319,1769656232670,-151.0,0.00017223,2]
[403907320,1769656232679,-152.0,0.00017223,2]
[403907321,1769656232688,-151.0,0.00017223,2]
[403907322,1769656232697,-151.0,0.00017223,2]
[403907323,1769656232706,-152.0,0.00017223,2]
[403907324,1769656232715,-151.0,0.00017223,2]
[403907325,1769656232724,-151.0,0.00017223,2]
[403907326,1769656232733,-152.0,0.00017223,2]
[403907327,1769656232742,-151.0,0.00017223,2]
[403907328,1769656232752,-151.0,0.00017223,2]
[403907329,1769656232761,-151.0,0.00017223,2]
[403907330,1769656232770,-207.16248342,0.00017223,2]
[403907331,1769656232779,-151.0,0.00017223,2]
[403907332,1769656232788,-151.0,0.00017223,2]
[403907333,1769656232797,-151.0,0.00017223,2]
[403907334,1769656232806,-152.0,0.00017223,2]
[403907335,1769656232815,-151.0,0.00017223,2]
[403907336,1769656232824,-152.0,0.00017223,2]
[403907337,1769656232833,-151.0,0.00017223,2]
[403907338,1769656232842,-152.0,0.00017223,2]
[403907339,1769656232851,-151.0,0.00017223,2]
[403907340,1769656232860,-152.0,0.00017223,2]
[403907341,1769656232868,-151.0,0.00017223,2]
[403907342,1769656232878,-152.0,0.00017223,2]
[403907343,1769656232887,-151.0,0.00017223,2]
[403907344,1769656232895,-152.0,0.00017223,2]
[403907345,1769656232904,-151.0,0.00017223,2]
[403907346,1769656232913,-152.0,0.00017223,2]
[403907347,1769656232922,-152.0,0.00017223,2]
[403907348,1769656232930,-166.39156659,0.00017223,2]
[403907349,1769656232939,-151.13386207,0.00017224,2]
[403907350,1769656232946,-500.0,0.00017224,2]
[403907351,1769656232955,-233.51889341,0.00017264,2]
[403907352,1769656232962,-500.0,0.00017279,2]
[403907353,1769656232973,-500.0,0.00017282,2]
[403907354,1769656232982,-500.0,0.00017282,2]
[403907355,1769656232991,-500.0,0.00017282,2]
[403907356,1769656233000,-500.0,0.00017282,2]
[403907357,1769656233013,-500.0,0.00017282,2]
[403907358,1769656233023,-500.0,0.00017282,2]
[403907359,1769656233032,-338.11800174,0.00017282,2]
[403907360,1769656233041,-500.0,0.00017282,2]
[403907361,1769656233051,-500.0,0.00017282,2]
[403907362,1769656233060,-500.0,0.00017282,2]
[403907363,1769656233069,-500.0,0.00017282,2]
[403907364,1769656233078,-500.0,0.00017282,2]
[403907365,1769656233088,-500.0,0.00017282,2]
[403907366,1769656233097,-500.0,0.00017282,2]
[403907367,1769656233106,-462.50429417,0.00017282,2]
[403907368,1769656233116,-500.0,0.00017282,2]
[403907369,1769656233125,-500.0,0.00017282,2]
[403907370,1769656233134,-500.0,0.00017282,2]
[403907371,1769656233143,-500.0,0.00017282,2]
[403907372,1769656233153,-500.0,0.00017282,2]
[403907373,1769656233162,-500.0,0.00017282,2]
[403907374,1769656233171,-500.0,0.00017282,2]
[403907375,1769656233180,-500.0,0.00017282,2]
[403907376,1769656233190,-500.0,0.00017282,2]
[403907377,1769656233199,-500.0,0.00017282,2]
[403907378,1769656233208,-500.0,0.00017282,2]
[403907379,1769656233217,-500.0,0.00017282,2]
[403907380,1769656233227,-500.0,0.00017282,2]
[403907381,1769656233236,-500.0,0.00017282,2]
[403907382,1769656233245,-500.0,0.00017282,2]
[403907383,1769656233255,-500.0,0.00017282,2]
[403907384,1769656233264,-300.0,0.00017282,2]
[403907385,1769656233273,-600.0,0.00017284,2]
[403907386,1769656233282,-164.0,0.000173,2]
[403907387,1769656233291,-406.0,0.00017313,2]
[403907388,1769656233581,-242.15909246,0.00017319,2]
[403907389,1769656233591,-406.0,0.0001732,2]
[403907390,1769656233600,-309.28369003,0.00017334,2]
[403907391,1769656233609,-251.11897888,0.00017374,2]
[403907392,1769656233618,-260.4103811,0.00017429,2]
[403907393,1769656233628,-166.66,0.00017435,2]
[403907394,1769656233638,-506.06036002,0.00017468,2]
[403907395,1769656233647,-1500.0,0.00017468,2]
[403907396,1769656233656,-1425.08236415,0.00017468,2]
[403907397,1769656233665,-1319.99376726,0.00017468,2]
[403907398,1769656233674,-270.0455652,0.00017484,2]
[403907399,1769656233684,-280.03725112,0.00017539,2]
[403907400,1769656233694,-257.69738072,0.00017586,2]